bitfinex/quotes_SOLUSD_20251024
["timestamp","ask_amount","ask_price","bid_price","bid_amount"]
[1761330035285,0.1,192.05,192.03,11.78353251]
[1761330035286,0.8,192.05,192.03,11.78353251]
[1761330035489,4.33038879,192.05,191.99,13.02096223]
[1761330035788,4.33038879,192.05,191.99,16.55135102]
[1761330036088,0.7,192.04,191.99,13.02096223]
[1761330036269,0.7,192.04,192.0,5.20828731]
[1761330036467,0.7,192.04,191.99,5.20860461]
[1761330036688,0.7,192.04,191.99,9.4489934]
[1761330037583,5.90730685,192.04,191.98,41.48886091]
[1761330037785,3.53038879,192.02,191.97,22.88]
[1761330038282,0.7,192.01,191.97,23.59]
[1761330038582,4.23038879,192.03,191.97,23.59]
[1761330038764,3.53038879,192.03,191.97,0.71]
[1761330038959,4.23038879,192.03,191.97,0.71]
[1761330039366,4.23038879,192.03,191.97,5.91914313]
[1761330040071,3.53038879,192.02,191.97,5.91914313]
[1761330040260,8.7376992,192.04,191.98,4.24038879]
[1761330040462,9.4376992,192.04,191.98,4.24038879]
[1761330040780,0.7,192.04,191.98,4.24038879]
[1761330041279,0.7,192.04,191.99,4.24038879]
[1761330042097,0.7,192.04,192.0,5.20833333]
[1761330043188,4.23038879,192.04,192.0,5.20833333]
[1761330043677,4.23038879,192.04,191.99,5.91853083]
[1761330043986,0.7,192.03,191.99,5.91853083]
[1761330045170,0.7,192.03,191.99,5.20853083]
[1761330046583,0.7,192.03,191.99,5.91853083]
[1761330046885,9.43792439,192.03,191.97,8.73953605]
[1761330047091,3.53038879,192.02,191.97,5.20914726]
[1761330047288,4.23038879,192.02,191.97,5.20914726]
[1761330047485,0.7,192.01,191.97,5.20914726]
[1761330049379,4.23038879,192.01,191.96,5.2094161]
[1761330049789,0.69,192.0,191.96,5.2094161]
[1761330050493,0.69,192.0,191.95,18.23390184]
[1761330051292,0.69,192.0,191.95,18.90390184]
[1761330052592,0.69,192.0,191.95,22.43429063]
[1761330054070,0.69,192.0,191.95,18.90390184]
[1761330056391,0.69,192.0,191.95,5.20969002]
[1761330056392,3.53038879,191.99,191.95,5.20969002]
[1761330056776,0.69,191.98,191.95,5.20969002]
[1761330057481,0.69,191.98,191.94,5.20996144]
[1761330057793,0.69,191.98,191.95,0.66]
[1761330058996,102.2,192.02,191.97,3.53038879]
[1761330059181,102.89,192.02,191.98,3.53038879]
[1761330059381,102.89,192.02,191.97,4.19038879]
[1761330059901,102.89,192.02,191.98,0.66]
[1761330060102,0.69,192.02,191.98,4.19038879]
[1761330060904,0.69,192.02,191.94,5.20996144]
[1761330060905,3.53038879,191.99,191.94,5.20996144]
[1761330061200,3.53038879,192.0,191.95,0.66]
[1761330061505,4.22038879,192.0,191.95,0.66]
[1761330061802,0.69,191.99,191.95,0.66]
[1761330061986,0.69,191.99,191.95,4.19038879]
[1761330062307,45.70864561,192.01,191.95,4.19038879]
[1761330062489,0.69,191.99,191.96,5.20941862]
[1761330062995,4.22038879,191.99,191.96,5.20941862]
[1761330063996,3.53038879,192.0,191.97,0.66]
[1761330064900,3.53038879,191.99,191.95,5.86969002]
[1761330065082,4.22038879,191.99,191.95,5.86969002]
[1761330069102,36.28,192.01,191.95,5.20969002]
[1761330069302,3.53038879,192.02,191.97,3.53038879]
[1761330069801,0.69,192.02,191.98,0.66]
[1761330070000,4.22038879,192.02,191.98,5.86866477]
[1761330070203,3.53038879,192.01,191.98,5.86866477]
[1761330071387,0.1,192.05,191.98,8.73905356]
[1761330071589,0.1,192.05,191.99,4.19038879]
[1761330071590,40.60038879,192.05,191.99,4.19038879]
[1761330071796,3.53038879,192.04,191.99,0.66]
[1761330071996,3.53038879,192.04,192.0,0.66]
[1761330072185,40.60038879,192.05,192.0,0.66]
[1761330072384,0.69,192.04,192.0,0.66]
[1761330073007,0.69,192.04,192.01,5.20806208]
[1761330073202,0.69,192.04,192.01,5.86806208]
[1761330074210,0.69,192.04,192.0,5.20833333]
[1761330074384,0.69,192.04,192.0,5.86833333]
[1761330074714,4.22038879,192.04,191.99,5.20855081]
[1761330075203,0.69,192.03,191.99,5.20855081]
[1761330075410,0.69,192.03,191.97,3.53038879]
[1761330075722,3.53038879,192.01,191.97,5.20888078]
[1761330075895,39.79038879,192.01,191.97,5.20888078]
[1761330076098,0.69,192.0,191.96,5.20941862]
[1761330077213,0.69,192.0,191.96,5.86941862]
[1761330080798,4.22038879,192.0,191.95,5.89969002]
[1761330081100,4.22038879,192.0,191.95,5.20969002]
[1761330081299,4.20038879,191.99,191.95,5.20969002]
[1761330081811,0.67,191.98,191.95,5.20969002]
[1761330082811,4.20038879,191.98,191.94,5.89994302]
[1761330083697,0.67,191.97,191.94,5.20994302]
[1761330084213,3.53038879,191.96,191.91,28.09070507]
[1761330084414,4.20038879,191.95,191.91,5.90070507]
[1761330084710,2.93056614,191.95,191.91,5.90070507]
[1761330085214,0.67,191.95,191.91,5.21070507]
[1761330085398,36.24,191.97,191.92,2.95056614]
[1761330085800,0.67,191.96,191.93,0.69]
[1761330086202,0.67,191.96,191.93,5.90004434]
[1761330086807,36.24,191.97,191.93,5.90004434]
[1761330087005,36.91,191.97,191.93,5.90004434]
[1761330088830,39.17056614,191.97,191.93,5.90004434]
[1761330089727,36.24,191.97,191.94,0.69]
[1761330090025,39.17056614,191.97,191.93,5.90004434]
[1761330090816,0.67,191.96,191.93,5.21004434]
[1761330091014,2.93056614,191.96,191.93,5.21004434]
[1761330091334,2.93056614,191.96,191.93,5.90004434]
[1761330092205,2.93056614,191.96,191.91,13.02691457]
[1761330092408,2.93056614,191.95,191.91,13.71691457]
[1761330092601,0.67,191.94,191.91,0.69]
[1761330093319,2.26056614,191.95,191.91,0.69]
[1761330093522,2.93056614,191.95,191.91,0.69]
[1761330093729,2.26056614,191.96,191.91,0.69]
[1761330094400,2.26056614,191.96,191.92,5.21050437]
[1761330094596,0.67,191.95,191.92,5.21050437]
[1761330094803,0.67,191.95,191.92,5.90050437]
[1761330096925,0.67,191.95,191.91,0.69]
[1761330097313,2.93056614,191.95,191.91,0.69]
[1761330097514,2.93056614,191.95,191.9,18.23866597]
[1761330097714,2.93056614,191.95,191.91,0.69]
[1761330098034,2.93056614,191.95,191.92,5.21050437]
[1761330099036,0.67,191.95,191.92,5.21050437]
[1761330100132,140.70056614,191.97,191.93,0.69]
[1761330100437,2.26056614,191.99,191.93,2.95056614]
[1761330100615,36.24,191.98,191.93,2.95056614]
[1761330100930,36.24,191.99,191.94,2.95056614]
[1761330101144,5.20808186,192.01,191.95,0.69]
[1761330101362,38.50056614,192.0,191.95,0.69]
[1761330101727,2.93056614,191.99,191.95,0.69]
[1761330102040,2.93056614,191.99,191.96,5.20941862]
[1761330102837,0.67,191.98,191.96,5.20941862]
[1761330103947,2.26056614,191.99,191.96,5.20941862]
[1761330104142,2.93056614,191.99,191.96,5.20941862]
[1761330107356,2.26056614,191.99,191.96,5.20941862]
[1761330107535,0.67,191.98,191.96,5.20941862]
[1761330108332,2.93056614,191.98,191.96,5.20941862]
[1761330108528,2.93056614,191.98,191.93,5.21023289]
[1761330108529,0.67,191.98,191.93,5.21023289]
[1761330108732,2.93056614,191.97,191.93,5.21023289]
[1761330108949,0.67,191.96,191.93,5.90023289]
[1761330109149,39.15056614,191.97,191.93,5.90023289]
[1761330109448,39.15056614,191.97,191.93,5.21023289]
[1761330109630,39.15056614,191.97,191.94,5.88969383]
[1761330110145,39.15056614,191.97,191.94,5.20969383]
[1761330110350,39.15056614,191.97,191.94,5.88969383]
[1761330110530,36.22,191.97,191.95,0.68]
[1761330111537,36.22,191.97,191.95,5.88953948]
[1761330118631,36.22,191.97,191.96,0.7]
[1761330118946,36.22,191.97,191.95,5.20953948]
[1761330119130,36.22,191.97,191.95,5.90953948]
[1761330120946,36.22,191.97,191.95,5.20953948]
[1761330123448,36.22,191.97,191.95,5.90953948]
[1761330124451,36.22,191.97,191.95,5.20953948]
[1761330125964,36.22,191.97,191.95,5.90953948]
[1761330126835,36.22,191.97,191.95,5.20953948]
[1761330127039,36.22,191.97,191.95,0.7]
[1761330127262,0.7,191.96,191.92,0.7]
[1761330127569,2.96056614,191.96,191.92,21.56195658]
[1761330128077,2.96056614,191.96,191.93,0.7]
[1761330128256,2.96056614,191.96,191.92,21.56195658]
[1761330128447,0.7,191.95,191.92,20.86195658]
[1761330129065,0.7,191.95,191.92,21.56195658]
[1761330129365,38.44056614,191.94,191.9,5.21104742]
[1761330129559,39.14056614,191.94,191.91,0.7]
[1761330129761,36.18,191.94,191.91,0.7]
[1761330130146,36.18,191.94,191.91,16.35312671]
[1761330130467,36.88,191.94,191.91,16.35312671]
[1761330130765,36.18,191.94,191.91,16.35312671]
[1761330131368,36.18,191.94,191.92,5.21050437]
[1761330131562,36.18,191.94,191.92,5.91050437]
[1761330133369,36.18,191.94,191.92,5.21050437]
[1761330133566,36.18,191.94,191.92,5.91050437]
[1761330135274,36.18,191.94,191.93,0.7]
[1761330136169,36.18,191.94,191.92,5.21050437]
[1761330136386,36.18,191.94,191.92,5.91050437]
[1761330136671,0.7,191.93,191.91,20.86387822]
[1761330136865,36.88,191.94,191.91,20.86387822]
[1761330137174,36.88,191.94,191.91,21.56387822]
[1761330137552,36.18,191.94,191.91,21.56387822]
[1761330141975,39.15056614,191.94,191.91,5.91075151]
[1761330142881,36.18,191.94,191.91,5.91075151]
[1761330143977,36.18,191.94,191.91,5.92075151]
[1761330144181,36.89,191.94,191.91,5.92075151]
[1761330144979,40.4222079,191.94,191.91,5.92075151]
[1761330148073,36.89,191.94,191.91,5.92075151]
[1761330149184,0.71,191.93,191.9,20.86416331]
[1761330149373,39.6922079,191.92,191.89,5.21123391]
[1761330149578,3.5322079,191.9,191.89,15.65312671]
[1761330149765,39.6922079,191.9,191.84,5.21242861]
[1761330149963,3.5322079,191.88,191.84,5.21242861]
[1761330150172,0.71,191.87,191.85,15.65312671]
[1761330150867,36.16,191.88,191.85,20.86546638]
[1761330151066,36.87,191.88,191.85,21.57546638]
[1761330151582,36.16,191.88,191.85,21.57546638]
[1761330154968,36.87,191.88,191.85,16.36312671]
[1761330155287,40.4022079,191.88,191.85,16.36312671]
[1761330157090,0.71,191.84,191.81,20.87375034]
[1761330157268,39.7122079,191.85,191.81,21.58375034]
[1761330157464,36.89,191.85,191.82,0.71]
[1761330158486,36.89,191.85,191.82,5.92298368]
[1761330158689,39.7122079,191.85,191.82,5.21298368]
[1761330158862,40.4222079,191.85,191.82,5.21298368]
[1761330159672,39.7122079,191.85,191.82,5.21298368]
[1761330159879,40.4222079,191.85,191.82,5.21298368]
[1761330160190,0.71,191.84,191.81,16.37048077]
[1761330160587,39.7122079,191.85,191.81,16.37048077]
[1761330160774,40.4222079,191.85,191.81,16.37048077]
[1761330161472,40.4222079,191.85,191.81,20.87377278]
[1761330161667,40.4222079,191.85,191.82,5.92314262]
[1761330163467,36.89,191.85,191.82,5.92314262]
[1761330163883,40.4222079,191.85,191.82,5.92314262]
[1761330164491,40.4222079,191.85,191.82,5.21314262]
[1761330165396,40.4222079,191.85,191.82,5.92314262]
[1761330165896,39.7122079,191.85,191.82,5.21314262]
[1761330166281,40.4222079,191.85,191.82,5.92314262]
[1761330167699,36.89,191.85,191.82,5.92314262]
[1761330167890,40.4222079,191.85,191.82,5.92314262]
[1761330168874,36.89,191.85,191.82,5.92314262]
[1761330171587,36.89,191.85,191.81,20.87394256]
[1761330171901,40.4222079,191.85,191.82,0.68]
[1761330172106,39.7122079,191.85,191.82,0.68]
[1761330172394,40.3622079,191.85,191.82,0.68]
[1761330172579,40.3622079,191.85,191.82,5.89322009]
[1761330172901,36.83,191.85,191.82,5.89322009]
[1761330174198,0.65,191.84,191.82,5.21322009]
[1761330175703,4.1822079,191.84,191.81,5.21346372]
[1761330175898,36.18,191.84,191.81,5.21346372]
[1761330176102,36.18,191.84,191.81,5.89346372]
[1761330176277,36.83,191.84,191.81,5.89346372]
[1761330176896,36.18,191.84,191.81,5.89346372]
[1761330177399,0.71,191.83,191.81,20.87476204]
[1761330177585,0.71,191.83,191.81,5.21346372]
[1761330177990,0.71,191.87,191.82,0.69]
[1761330178181,36.18,191.86,191.82,4.2222079]
[1761330178381,36.18,191.86,191.8,0.69]
[1761330178382,3.5322079,191.84,191.8,0.69]
[1761330178588,36.18,191.83,191.8,0.69]
[1761330178799,36.89,191.83,191.8,0.69]
[1761330179000,40.4222079,191.83,191.8,0.69]
[1761330179297,40.4222079,191.83,191.79,5.21383661]
[1761330179499,0.71,191.82,191.79,5.90383661]
[1761330179697,40.4222079,191.83,191.79,5.90383661]
[1761330179899,3.5322079,191.82,191.79,5.90383661]
[1761330180777,3.5322079,191.8,191.76,0.2]
[1761330181007,3.5322079,191.77,191.76,0.2]
[1761330181690,4.2422079,191.77,191.76,0.2]
[1761330183397,9.45678786,191.77,191.76,0.2]
[1761330186301,9.45678786,191.77,191.75,0.2]
[1761330186302,14.40868311,191.76,191.75,0.2]
[1761330186487,55.18311001,191.76,191.75,0.2]
[1761330187992,60.3979619,191.76,191.75,0.2]
[1761330188192,60.3979619,191.76,191.73,0.2]
[1761330188193,33.75647521,191.74,191.73,0.2]
[1761330188409,33.75647521,191.74,191.72,0.2]
[1761330188410,10.87647521,191.73,191.72,0.2]
[1761330188608,55.22311001,191.73,191.72,0.2]
[1761330189116,57.31313796,191.73,191.72,0.2]
[1761330189517,33.75647521,191.68,191.65,0.2]
[1761330189690,77.40755294,191.68,191.65,0.2]
[1761330189893,74.23868311,191.68,191.65,0.2]
[1761330190100,81.54617635,191.68,191.65,0.2]
[1761330190308,89.51408029,191.68,191.65,0.2]
[1761330191117,85.42112176,191.68,191.65,0.2]
[1761330191418,81.54617635,191.68,191.65,0.2]
[1761330191934,37.28868311,191.65,191.64,0.2]
[1761330192104,73.54868311,191.65,191.64,0.2]
[1761330192415,74.25868311,191.65,191.64,0.2]
[1761330192616,76.3493665,191.65,191.64,0.2]
[1761330192994,73.54868311,191.65,191.64,0.2]
[1761330193190,78.76652814,191.65,191.64,0.2]
[1761330193417,79.47652814,191.65,191.64,0.2]
[1761330193748,70.01647521,191.65,191.64,0.2]
[1761330194037,73.54868311,191.65,191.64,0.2]
[1761330194190,62.6722079,191.65,191.64,0.2]
[1761330194732,62.6922079,191.65,191.64,0.2]
[1761330196220,10.87647521,191.73,191.64,9.64028777]
[1761330196444,3.5322079,191.71,191.65,3.5322079]
[1761330196618,3.5322079,191.71,191.65,4.2222079]
[1761330196798,3.5322079,191.66,191.64,2.97980956]
[1761330197131,3.5322079,191.65,191.64,2.97980956]
[1761330197433,39.8322079,191.66,191.64,2.97980956]
[1761330200032,39.8322079,191.66,191.64,2.94980956]
[1761330200211,36.3,191.66,191.64,0.2]
[1761330200407,3.5322079,191.65,191.64,0.86]
[1761330202131,3.5322079,191.65,191.64,0.2]
[1761330202807,4.1922079,191.65,191.64,0.2]
[1761330203523,3.5322079,191.65,191.64,0.2]
[1761330204721,19.02277075,191.65,191.64,0.2]
[1761330205109,7.48629554,191.65,191.64,0.2]
[1761330206226,43.82629554,191.65,191.64,0.2]
[1761330206434,55.36277075,191.65,191.64,0.2]
[1761330206928,19.02277075,191.65,191.64,0.2]
[1761330207111,55.36277075,191.65,191.64,0.2]
[1761330207816,54.70277075,191.65,191.64,0.2]
[1761330208016,55.36277075,191.65,191.64,0.2]
[1761330208525,54.70277075,191.65,191.64,0.2]
[1761330208728,55.36277075,191.65,191.64,0.2]
[1761330211829,54.70277075,191.65,191.64,0.2]
[1761330212031,38.58845051,191.67,191.64,0.86]
[1761330212238,38.58845051,191.67,191.65,0.66]
[1761330212434,38.58845051,191.67,191.64,2.29057412]
[1761330212637,38.58845051,191.67,191.64,0.86]
[1761330212834,38.58845051,191.67,191.65,5.87845342]
[1761330213031,36.32,191.67,191.65,5.87845342]
[1761330213230,36.32,191.67,191.66,0.66]
[1761330213545,16.09268719,191.71,191.66,6.53845342]
[1761330213843,36.32,191.7,191.66,6.53845342]
[1761330214137,38.58845051,191.7,191.67,0.66]
[1761330214339,36.32,191.7,191.67,0.66]
[1761330214728,36.32,191.7,191.66,11.09592198]
[1761330214922,36.32,191.7,191.67,0.66]
[1761330215535,36.32,191.7,191.68,11.09592198]
[1761330216339,36.32,191.7,191.68,11.75592198]
[1761330217140,13.80492572,191.69,191.64,0.86]
[1761330217347,2.26845051,191.67,191.64,0.86]
[1761330217524,2.26845051,191.67,191.65,11.75592198]
[1761330217717,2.26845051,191.67,191.65,12.41592198]
[1761330218345,36.32,191.68,191.66,0.66]
[1761330218544,38.58845051,191.68,191.66,0.66]
[1761330219036,43.8056688,191.68,191.66,11.75592198]
[1761330219240,2.26845051,191.67,191.64,0.2]
[1761330219446,38.58845051,191.68,191.64,0.86]
[1761330219746,38.58845051,191.68,191.65,11.75592198]
[1761330219939,38.58845051,191.68,191.65,12.41592198]
[1761330222549,38.58845051,191.68,191.66,0.66]
[1761330223647,2.26845051,191.67,191.65,11.75592198]
[1761330223825,2.26845051,191.67,191.66,0.66]
[1761330224226,6.15634754,191.67,191.65,11.75592198]
[1761330224533,2.26845051,191.67,191.65,12.41592198]
[1761330226228,38.58845051,191.68,191.65,12.41592198]
[1761330226455,3.89003486,191.67,191.65,12.41592198]
[1761330226761,36.98,191.68,191.65,11.75592198]
[1761330226935,3.89003455,191.67,191.65,11.75592198]
[1761330227249,3.89212663,191.66,191.65,11.75592198]
[1761330227918,42.46057714,191.66,191.64,0.2]
[1761330228121,6.16057714,191.65,191.64,0.2]
[1761330230037,3.89212663,191.65,191.64,0.91]
[1761330230349,3.89212663,191.65,191.64,13.98592198]
[1761330230749,3.89212663,191.65,191.64,19.20403928]
[1761330230930,36.3,191.66,191.64,19.20403928]
[1761330231246,36.3,191.66,191.65,0.71]
[1761330231567,40.20327621,191.66,191.65,0.71]
[1761330232147,3.90327621,191.66,191.65,0.71]
[1761330232740,3.90327621,191.66,191.65,8.19629554]
[1761330232945,138.5,191.7,191.65,5.92784503]
[1761330233147,3.90410613,191.69,191.66,0.71]
[1761330233338,3.90410613,191.68,191.66,0.71]
[1761330233539,3.90410613,191.67,191.66,0.71]
[1761330233927,3.90410613,191.67,191.66,5.92757278]
[1761330234329,138.5,191.7,191.66,5.92757278]
[1761330234551,138.5,191.7,191.67,0.71]
[1761330234954,138.5,191.7,191.67,19.20315473]
[1761330235337,138.5,191.7,191.68,0.71]
[1761330235544,102.2,191.7,191.68,0.71]
[1761330236242,38.56845051,191.74,191.68,2.97845051]
[1761330236756,38.56845051,191.74,191.7,5.21648408]
[1761330237449,39.27845051,191.74,191.7,5.92648408]
[1761330239440,2.26845051,191.73,191.7,5.92648408]
[1761330239637,2.97845051,191.73,191.7,0.71]
[1761330240657,2.26845051,191.72,191.7,0.71]
[1761330241752,2.26845051,191.72,191.69,5.21670859]
[1761330241949,2.97845051,191.71,191.66,0.71]
[1761330242148,2.26845051,191.71,191.66,0.71]
[1761330242355,2.97845051,191.71,191.66,16.38275291]
[1761330242555,2.26845051,191.71,191.66,5.21757278]
[1761330242861,38.54845051,191.72,191.68,5.21702838]
[1761330243357,2.26845051,191.7,191.65,0.71]
[1761330243744,2.97845051,191.7,191.65,0.71]
[1761330244146,2.26845051,191.7,191.65,0.71]
[1761330244340,2.97845051,191.69,191.65,5.9277804]
[1761330245060,39.25845051,191.69,191.65,5.9277804]
[1761330245553,39.25845051,191.69,191.64,5.41804521]
[1761330245554,2.97845051,191.68,191.64,5.41804521]
[1761330245862,2.97845051,191.68,191.64,6.12804521]
[1761330246056,2.97845051,191.67,191.64,0.2]
[1761330246372,2.26845051,191.66,191.64,0.2]
[1761330247053,2.26845051,191.66,191.64,0.91]
[1761330247667,2.26845051,191.66,191.64,0.2]
[1761330247668,2.97845051,191.65,191.64,0.2]
[1761330247875,39.25845051,191.65,191.64,0.2]
[1761330248365,50.13492572,191.65,191.64,0.2]
[1761330249657,55.35277075,191.65,191.64,0.2]
[1761330251060,50.13492572,191.65,191.64,0.2]
[1761330251441,36.28,191.65,191.64,0.2]
[1761330251646,38.54845051,191.65,191.64,0.2]
[1761330252570,39.25845051,191.65,191.64,0.2]
[1761330254753,38.54845051,191.65,191.64,0.2]
[1761330258566,102.2,191.67,191.64,0.91]
[1761330258756,38.54845051,191.66,191.64,0.91]
[1761330259061,38.54845051,191.66,191.64,6.12808883]
[1761330259268,36.28,191.66,191.64,6.12808883]
[1761330259648,36.28,191.66,191.64,0.91]
[1761330261069,38.54845051,191.66,191.64,0.91]
[1761330263989,38.54845051,191.66,191.64,0.2]
[1761330264349,38.54845051,191.66,191.64,0.91]
[1761330266073,38.54845051,191.66,191.64,0.2]
[1761330266369,39.24845051,191.66,191.64,0.2]
[1761330266771,4.24289504,191.65,191.64,0.2]
[1761330268571,9.46074007,191.65,191.64,0.2]
[1761330272985,20.33721528,191.65,191.64,0.2]
[1761330281201,10.87647521,191.65,191.64,0.2]
[1761330281409,51.35937025,191.65,191.64,0.2]
[1761330281691,50.65937025,191.65,191.64,0.2]
[1761330282391,55.87721528,191.65,191.64,0.2]
[1761330282764,52.33432024,191.65,191.64,0.2]
[1761330282971,55.87721528,191.65,191.64,0.2]
[1761330283389,36.24,191.65,191.64,0.91]
[1761330283574,39.78289504,191.65,191.64,0.2]
[1761330283780,39.78289504,191.65,191.64,0.91]
[1761330284495,39.78289504,191.65,191.64,0.2]
[1761330285596,3.54289504,191.65,191.64,0.2]
[1761330285788,39.78289504,191.65,191.64,0.2]
[1761330286698,39.78289504,191.65,191.64,0.91]
[1761330287794,36.24,191.65,191.64,0.91]
[1761330288894,39.78289504,191.65,191.64,0.91]
[1761330299924,39.78289504,191.65,191.64,0.2]
[1761330300327,39.78289504,191.65,191.64,0.86]
[1761330301327,39.78289504,191.65,191.64,0.2]
[1761330301823,39.78289504,191.65,191.64,0.86]
[1761330303624,56.59721528,191.65,191.64,0.2]
[1761330304629,2.72625074,191.67,191.64,0.86]
[1761330304831,36.24,191.66,191.64,6.07805874]
[1761330305122,36.24,191.66,191.65,0.66]
[1761330305526,36.24,191.66,191.65,5.87784503]
[1761330305833,141.98289504,191.68,191.65,5.87784503]
[1761330306029,141.98289504,191.68,191.66,0.66]
[1761330309424,3.54289504,191.67,191.66,0.66]
[1761330310315,138.44,191.68,191.66,0.66]
[1761330310516,3.54289504,191.67,191.66,0.66]
[1761330310916,104.92583916,191.73,191.66,5.87737388]
[1761330311118,39.78289504,191.72,191.66,9.42026892]
[1761330311427,3.54289504,191.71,191.67,0.66]
[1761330311745,3.54289504,191.7,191.67,0.66]
[1761330312114,3.54289504,191.7,191.68,15.67357174]
[1761330312614,3.54289504,191.7,191.68,16.33357174]
[1761330313037,3.54289504,191.71,191.68,16.33357174]
[1761330313641,36.96,191.72,191.68,15.67357174]
[1761330313855,3.54289504,191.71,191.69,0.66]
[1761330314753,102.2,191.73,191.69,9.41952755]
[1761330314918,102.2,191.73,191.7,16.33193417]
[1761330315318,102.2,191.73,191.71,0.66]
[1761330319025,105.74289504,191.73,191.71,0.66]
[1761330319545,105.74289504,191.73,191.71,0.69]
[1761330320140,102.2,191.73,191.71,0.69]
[1761330320351,102.2,191.73,191.71,4.23289504]
[1761330320555,102.2,191.73,191.72,15.67029695]
[1761330320745,0.67,191.79,191.72,19.90319199]
[1761330320946,39.76289504,191.78,191.73,4.23289504]
[1761330321156,36.22,191.78,191.74,0.69]
[1761330321545,36.22,191.78,191.75,20.88214737]
[1761330321741,3.54289504,191.79,191.75,20.88214737]
[1761330321958,47.09647521,191.8,191.76,0.69]
[1761330322151,3.54289504,191.79,191.76,0.69]
[1761330323041,47.09647521,191.8,191.76,0.69]
[1761330323246,36.22,191.8,191.77,3.54289504]
[1761330323449,10.87647521,191.83,191.77,3.54289504]
[1761330323734,3.39423776,191.84,191.76,5.90474481]
[1761330323735,36.22,191.82,191.78,0.69]
[1761330323944,3.54289504,191.81,191.78,16.35456935]
[1761330324156,36.22,191.82,191.79,0.69]
[1761330324350,39.76289504,191.82,191.79,0.69]
[1761330324938,16.75920342,191.84,191.8,3.54289504]
[1761330324939,10.87647521,191.83,191.8,3.54289504]
[1761330325143,142.06289504,191.85,191.79,5.90395347]
[1761330325359,142.06289504,191.85,191.8,4.23289504]
[1761330325656,142.06289504,191.85,191.8,19.89501099]
[1761330325837,142.06289504,191.85,191.81,0.69]
[1761330326038,36.32,191.85,191.81,0.69]
[1761330326442,39.86289504,191.85,191.81,0.69]
[1761330326854,38.58254221,191.85,191.81,0.69]
[1761330327058,38.58254221,191.85,191.81,5.90340645]
[1761330327549,36.32,191.85,191.82,0.69]
[1761330329086,36.32,191.85,191.82,5.90310874]
[1761330329582,36.32,191.85,191.83,0.69]
[1761330330471,0.1,191.85,191.83,0.69]
[1761330330850,0.77,191.85,191.82,20.87440706]
[1761330331063,3.03254221,191.85,191.82,15.66129832]
[1761330331242,3.03254221,191.85,191.81,5.21345303]
[1761330331438,2.36254221,191.85,191.82,0.69]
[1761330333240,2.36254221,191.85,191.81,20.87475135]
[1761330333241,2.26254221,191.83,191.81,15.66129832]
[1761330333453,10.87647521,191.81,191.74,0.69]
[1761330333667,2.26254221,191.76,191.74,0.69]
[1761330335159,2.26254221,191.77,191.74,0.69]
[1761330335355,2.26254221,191.77,191.74,5.90522744]
[1761330335566,2.26254221,191.78,191.74,5.90522744]
[1761330335779,2.26254221,191.78,191.75,0.69]
[1761330336275,2.26254221,191.77,191.75,0.69]
[1761330336480,2.26254221,191.78,191.75,5.90511926]
[1761330337170,2.26254221,191.78,191.75,0.69]
[1761330337857,2.26254221,191.78,191.74,5.21537377]
[1761330337858,2.26254221,191.77,191.74,5.21537377]
[1761330338063,0.67,191.78,191.74,5.90537377]
[1761330338064,2.26254221,191.76,191.74,5.90537377]
[1761330338375,2.26254221,191.76,191.75,0.69]
[1761330338755,2.26254221,191.76,191.73,20.8826535]
[1761330338948,2.26254221,191.76,191.74,0.69]
[1761330339357,36.22,191.79,191.74,0.69]
[1761330339562,2.26254221,191.78,191.74,0.69]
[1761330339762,2.26254221,191.77,191.74,0.69]
[1761330340574,42.10407794,191.79,191.74,5.90539057]
[1761330340769,2.26254221,191.78,191.74,5.90539057]
[1761330341071,42.10407794,191.79,191.75,0.69]
[1761330341260,2.26254221,191.78,191.75,0.69]
[1761330342670,2.26254221,191.77,191.74,15.66702352]